[Event "WJCC U20 Open 2019"]
[Site "New Delhi"]
[Date "2019.10.19"]
[Round "6.10"]
[White "Audi Ameya"]
[Black "Haria, Ravi"]
[Result "0-1"]
[ECO "C50"]
[WhiteElo "2336"]
[BlackElo "2463"]
[Annotator "ChessBase"]
[PlyCount "222"]
[EventDate "2019.10.15"]
[EventType "swiss"]
[EventCountry "IND"]
[SourceTitle "playchess.com"]
[Source "ChessBase"]
[SourceQuality "1"]
[TimeControl "40/5400+30:1800+30"]

1. e4 {[%emt 0:00:00]} e5 {[%emt 0:00:00]} 2. Nf3 {[%emt 0:00:00]} Nc6 {[%emt 0:00:00]} 3. Bc4 {[%emt 0:00:31]} Bc5 {[%emt 0:00:00]} 4. O-O {[%emt 0:00:57]} Nf6 {[%emt 0:01:08]} 5. Re1 {[%emt 0:01:08]} O-O {[%emt 0:01:37]} 6. d3 {[%emt 0:00:15]} Ng4 {[%emt 0:02:20]} 7. Rf1 {[%emt 0:06:38]} Nf6 {[%emt 0:04:38]} 8. Re1 {[%emt 0:00:21]} d6 {[%emt 0:02:08]} 9. c3 {[%emt 0:00:12]} a5 {[%emt 0:01:05]} 10. Bg5 {[%emt 0:02:42]} h6 {[%emt 0:00:33]} 11. Bh4 {[%emt 0:00:03]} g5 {[%emt 0:02:49]} 12. Bg3 {[%emt 0:00:02]} Nh7 {[%emt 0:04:23]} 13. d4 {[%emt 0:09:19]} Bb6 {[%emt 0:15:17]} 14. dxe5 {[%emt 0:09:42]} g4 {[%emt 0:06:57]} 15. Bh4 {[%emt 0:11:38]} Ng5 {[%emt 0:20:14]} 16. Nxg5 {[%emt 0:01:39]} hxg5 {[%emt 0:00:22]} 17. Bg3 {[%emt 0:00:14]} Nxe5 {[%emt 0:00:32]} 18. Nd2 {[%emt 0:10:20]} Qf6 {[%emt 0:06:33]} 19. Bf1 {[%emt 0:01:36]} Be6 {[%emt 0:01:27]} 20. Qa4 {[%emt 0:00:07]} Kg7 {[%emt 0:01:41]} 21. Bc4 {[%emt 0:15:01]} Bd7 {[%emt 0:07:41]} 22. Bb5 {[%emt 0:00:04]} Nd3 {[%emt 0:09:21]} 23. Re2 {[%emt 0:01:37]} Nc5 {[%emt 0:02:44]} 24. Qc4 {[%emt 0:07:29]} c6 {[%emt 0:02:41]} 25. Ba4 {[%emt 0:00:02]} Be6 {[%emt 0:01:05]} 26. e5 {[%emt 0:00:02]} Qg6 {[%emt 0:03:24]} 27. Qd4 {[%emt 0:00:03]} d5 {[%emt 0:00:10]} 28. Nf1 {[%emt 0:02:06]} Nxa4 {[%emt 0:01:23]} 29. Qxa4 {[%emt 0:00:03]} Rfd8 {[%emt 0:01:29]} 30. Rd1 {[%emt 0:02:00]} Rd7 {[%emt 0:00:34]} 31. Ne3 {[%emt 0:02:55]} Qh5 {[%emt 0:00:15]} 32. Nc2 {[%emt 0:03:20]} Rad8 {[%emt 0:00:46]} 33. Nd4 {[%emt 0:00:34]} Qg6 {[%emt 0:00:25]} 34. Red2 {[%emt 0:03:07]} Kh6 {[%emt 0:00:32]} 35. Rd3 {[%emt 0:01:34]} Bf5 {[%emt 0:00:22]} 36. Nxf5+ {[%emt 0:02:23]} Qxf5 {[%emt 0:00:01]} 37. Kh1 {[%emt 0:00:01]} Kg6 {[%emt 0:01:08]} 38. f3 {[%emt 0:00:29]} d4 {[%emt 0:00:38]} 39. cxd4 {[%emt 0:01:00]} gxf3 {[%emt 0:00:28]} 40. gxf3 {[%emt 0:01:53]} Rd5 {[%emt 0:00:25]} 41. R1d2 {[%emt 0:17:54]} Ba7 {[%emt 0:11:58]} 42. Kg2 {[%emt 0:08:42]} c5 {[%emt 0:08:28]} 43. Qb5 {[%emt 0:01:24]} R8d7 {[%emt 0:00:46]} 44. Re2 {[%emt 0:02:49]} Rxd4 {[%emt 0:07:10]} 45. Rxd4 {[%emt 0:00:06]} cxd4 {[%emt 0:00:26]} 46. a4 {[%emt 0:06:03]} d3 {[%emt 0:02:37]} 47. e6 {[%emt 0:00:01]} Qxb5 {[%emt 0:00:41]} 48. axb5 {[%emt 0:00:04]} fxe6 {[%emt 0:01:13]} 49. Rxe6+ {[%emt 0:00:49]} Kf7 {[%emt 0:00:34]} 50. Re1 {[%emt 0:00:12]} Rd5 {[%emt 0:00:11]} 51. Rd1 {[%emt 0:03:04]} a4 {[%emt 0:01:31]} 52. Kh3 {[%emt 0:00:54]} Be3 {[%emt 0:00:33]} 53. Kg2 {[%emt 0:00:46]} Kf6 {[%emt 0:00:10]} 54. Be1 {[%emt 0:00:22]} d2 {[%emt 0:00:50]} 55. Bf2 {[%emt 0:00:01]} Bf4 {[%emt 0:00:18]} 56. Bg3 {[%emt 0:00:46]} Be3 {[%emt 0:00:41]} 57. Bf2 {[%emt 0:00:04]} Bf4 {[%emt 0:00:24]} 58. Bg3 {[%emt 0:00:01]} Kf5 {[%emt 0:00:38]} 59. Kf2 {[%emt 0:00:02]} b6 {[%emt 0:00:29]} 60. Ke2 {[%emt 0:00:16]} Re5+ {[%emt 0:00:24]} 61. Kf2 {[%emt 0:00:29]} Rxb5 {[%emt 0:00:34]} 62. Bxf4 {[%emt 0:00:04]} Kxf4 {[%emt 0:00:24]} 63. Rxd2 {[%emt 0:00:02]} Rb4 {[%emt 0:00:17]} 64. Ke2 {[%emt 0:01:42]} b5 {[%emt 0:00:17]} 65. Kf2 {[%emt 0:00:02]} Rc4 {[%emt 0:01:03]} 66. Ke2 {[%emt 0:00:32]} Rb4 {[%emt 0:00:26]} 67. Kf2 {[%emt 0:00:40]} Rb3 {[%emt 0:00:31]} 68. Rd4+ {[%emt 0:00:05]} Ke5 {[%emt 0:00:03]} 69. Rd2 {[%emt 0:00:03]} b4 {[%emt 0:00:46]} 70. Kg3 {[%emt 0:00:04]} Rxb2 {[%emt 0:00:48]} 71. Rxb2 {[%emt 0:00:09]} b3 {[%emt 0:00:03]} 72. f4+ {[%emt 0:01:28]} gxf4+ {[%emt 0:00:01]} 73. Kf3 {[%emt 0:00:08]} Kd4 {[%emt 0:00:15]} 74. h4 {[%emt 0:02:28]} Kc3 {[%emt 0:00:01]} 75. h5 {[%emt 0:00:01]} Kxb2 {[%emt 0:02:08]} 76. h6 {[%emt 0:00:02]} Ka2 {[%emt 0:00:24]} 77. h7 {[%emt 0:00:03]} b2 {[%emt 0:00:03]} 78. h8=Q {[%emt 0:00:03]} b1=Q {[%emt 0:00:05]} 79. Kxf4 {[%emt 0:00:58]} a3 {[%emt 0:01:05]} 80. Qc3 {[%emt 0:00:58]} Qb2 {[%emt 0:00:54]} 81. Qc4+ {[%emt 0:01:06]} Qb3 {[%emt 0:00:28]} 82. Qc1 {[%emt 0:00:16]} Qd3 {[%emt 0:00:22]} 83. Qc5 {[%emt 0:01:42]} Kb3 {[%emt 0:00:25]} 84. Qb6+ {[%emt 0:00:09]} Ka4 {[%emt 0:00:35]} 85. Qa7+ {[%emt 0:00:28]} Kb4 {[%emt 0:00:28]} 86. Qe7+ {[%emt 0:00:31]} Kb3 {[%emt 0:00:16]} 87. Qb7+ {[%emt 0:00:13]} Kc3 {[%emt 0:00:02]} 88. Kg5 {[%emt 0:01:23]} a2 {[%emt 0:00:29]} 89. Qc7+ {[%emt 0:00:39]} Kb2 {[%emt 0:00:35]} 90. Qe5+ {[%emt 0:00:30]} Kc2 {[%emt 0:01:00]} 91. Qc5+ {[%emt 0:00:21]} Qc3 {[%emt 0:00:09]} 92. Qf5+ {[%emt 0:00:10]} Kd1 {[%emt 0:00:28]} 93. Qf1+ {[%emt 0:00:51]} Qe1 {[%emt 0:00:25]} 94. Qf3+ {[%emt 0:00:06]} Qe2 {[%emt 0:00:15]} 95. Qh1+ {[%emt 0:00:49]} Kc2 {[%emt 0:00:45]} 96. Qc6+ {[%emt 0:00:04]} Kb1 {[%emt 0:01:00]} 97. Qh1+ {[%emt 0:00:26]} Kb2 {[%emt 0:00:16]} 98. Qb7+ {[%emt 0:00:08]} Kc3 {[%emt 0:00:18]} 99. Qc7+ {[%emt 0:01:30]} Qc4 {[%emt 0:00:23]} 100. Qe5+ {[%emt 0:00:36]} Kb3 {[%emt 0:00:13]} 101. Qe3+ {[%emt 0:00:32]} Ka4 {[%emt 0:00:05]} 102. Qa7+ {[%emt 0:00:20]} Kb4 {[%emt 0:00:04]} 103. Kh6 {[%emt 0:00:26]} Qc1+ {[%emt 0:00:06]} 104. Kh7 {[%emt 0:00:17]} a1=Q {[%emt 0:00:45]} 105. Qb6+ {[%emt 0:00:13]} Kc3 {[%emt 0:00:07]} 106. Qc5+ {[%emt 0:00:12]} Kb2 {[%emt 0:01:20]} 107. Qb4+ {[%emt 0:00:05]} Ka2 {[%emt 0:00:10]} 108. Qa4+ {[%emt 0:00:08]} Kb1 {[%emt 0:00:11]} 109. Qb3+ {[%emt 0:01:00]} Qab2 {[%emt 0:00:05]} 110. Qd5 {[%emt 0:00:07]} Qc7+ {[%emt 0:00:07]} 111. Kg6 {[%emt 0:00:10]} Qbb6+ {[%emt 0:00:04]} 0-1

[Event "WJCC U20 Open 2019"]
[Site "New Delhi"]
[Date "2019.10.19"]
[Round "6.12"]
[White "Davtyan, Artur"]
[Black "Aravindh, Chithambaram VR."]
[Result "0-1"]
[ECO "D45"]
[WhiteElo "2418"]
[BlackElo "2609"]
[Annotator "ChessBase"]
[PlyCount "144"]
[EventDate "2019.10.15"]
[EventType "swiss"]
[EventCountry "IND"]
[SourceTitle "playchess.com"]
[Source "ChessBase"]
[SourceQuality "1"]
[TimeControl "40/5400+30:1800+30"]

1. d4 {[%emt 0:00:00]} d5 {[%emt 0:00:00]} 2. c4 {[%emt 0:00:56]} e6 {[%emt 0:00:00]} 3. Nc3 {[%emt 0:00:13]} c6 {[%emt 0:00:00]} 4. Nf3 {[%emt 0:00:08]} Nf6 {[%emt 0:00:05]} 5. e3 {[%emt 0:00:29]} Nbd7 {[%emt 0:00:08]} 6. Qc2 {[%emt 0:00:09]} Bd6 {[%emt 0:00:11]} 7. Bd3 {[%emt 0:00:12]} O-O {[%emt 0:00:25]} 8. O-O {[%emt 0:00:51]} dxc4 {[%emt 0:00:06]} 9. Bxc4 {[%emt 0:00:04]} b5 {[%emt 0:00:06]} 10. Be2 {[%emt 0:01:07]} Bb7 {[%emt 0:00:08]} 11. e4 {[%emt 0:00:11]} e5 {[%emt 0:00:07]} 12. dxe5 {[%emt 0:00:11]} Nxe5 {[%emt 0:00:06]} 13. Nd4 {[%emt 0:00:04]} Neg4 {[%emt 0:00:20]} 14. g3 {[%emt 0:00:05]} Bc5 {[%emt 0:00:30]} 15. Nf5 {[%emt 0:00:35]} g6 {[%emt 0:00:32]} 16. Nh6+ {[%emt 0:26:56]} Nxh6 {[%emt 0:00:47]} 17. Bxh6 {[%emt 0:00:22]} Re8 {[%emt 0:00:07]} 18. Bf3 {[%emt 0:00:23]} Qe7 {[%emt 0:11:42]} 19. Bg5 {[%emt 0:04:05]} Qe6 {[%emt 0:04:19]} 20. Rad1 {[%emt 0:05:37]} Bb6 {[%emt 0:02:28]} 21. a3 {[%emt 0:20:38]} Ng4 {[%emt 0:07:39]} 22. Bg2 {[%emt 0:02:14]} f6 {[%emt 0:00:42]} 23. Bc1 {[%emt 0:00:45]} Rad8 {[%emt 0:00:13]} 24. h3 {[%emt 0:12:11]} Rxd1 {[%emt 0:01:02]} 25. Nxd1 {[%emt 0:00:23]} Ne5 {[%emt 0:00:06]} 26. Ne3 {[%emt 0:02:30]} Nf7 {[%emt 0:03:52]} 27. Rd1 {[%emt 0:05:33]} Kg7 {[%emt 0:04:36]} 28. Kh2 {[%emt 0:00:15]} Bc8 {[%emt 0:02:43]} 29. f4 {[%emt 0:01:13]} Nd6 {[%emt 0:02:14]} 30. e5 {[%emt 0:00:47]} fxe5 {[%emt 0:02:54]} 31. Qxc6 {[%emt 0:00:48]} Nf7 {[%emt 0:05:09]} 32. Qxe6 {[%emt 0:09:58]} Bxe6 {[%emt 0:00:29]} 33. fxe5 {[%emt 0:01:35]} Nxe5 {[%emt 0:00:36]} 34. Nd5 {[%emt 0:00:34]} Bg4 {[%emt 0:06:21]} 35. Rf1 {[%emt 0:02:29]} Be2 {[%emt 0:00:23]} 36. Rf6 {[%emt 0:00:01]} Bc4 {[%emt 0:00:14]} 37. Rd6 {[%emt 0:03:24]} Bc5 {[%emt 0:03:34]} 38. Ra6 {[%emt 0:00:12]} Bxd5 {[%emt 0:15:37]} 39. Bxd5 {[%emt 0:00:01]} Nd3 {[%emt 0:00:05]} 40. b4 {[%emt 0:01:18]} Bb6 {[%emt 0:07:04]} 41. Bf4 {[%emt 0:30:14]} g5 {[%emt 0:34:27]} 42. Bxg5 {[%emt 0:00:00]} Re2+ {[%emt 0:00:00]} 43. Kh1 {[%emt 0:00:00]} Re5 {[%emt 0:00:00]} 44. Bd8 {[%emt 0:00:00]} Rxd5 {[%emt 0:00:00]} 45. Bxb6 {[%emt 0:00:00]} axb6 {[%emt 0:00:00]} 46. Rxb6 {[%emt 0:00:00]} Ne5 {[%emt 0:00:00]} 47. Ra6 {[%emt 0:00:00]} Rd2 {[%emt 0:00:00]} 48. Kg1 {[%emt 0:00:00]} Ra2 {[%emt 0:00:00]} 49. Ra5 {[%emt 0:00:00]} Nf3+ {[%emt 0:00:00]} 50. Kf1 {[%emt 0:00:00]} Nd4 {[%emt 0:00:00]} 51. Ra6 {[%emt 0:00:00]} Nf5 {[%emt 0:00:00]} 52. g4 {[%emt 0:00:00]} Ne3+ {[%emt 0:00:00]} 53. Kg1 {[%emt 0:00:00]} Nc4 {[%emt 0:00:00]} 54. Ra7+ {[%emt 0:00:00]} Kg6 {[%emt 0:00:00]} 55. Rb7 {[%emt 0:00:00]} Rxa3 {[%emt 0:00:00]} 56. Rxb5 {[%emt 0:00:00]} Rxh3 {[%emt 0:00:00]} 57. Kg2 {[%emt 0:00:00]} Rb3 {[%emt 0:00:00]} 58. Kf2 {[%emt 0:00:00]} Ne3 {[%emt 0:00:00]} 59. Kg3 {[%emt 0:00:00]} h6 {[%emt 0:00:00]} 60. Rc5 {[%emt 0:00:00]} Nf5+ {[%emt 0:00:00]} 61. Kf2 {[%emt 0:00:00]} Rb2+ {[%emt 0:00:00]} 62. Kf3 {[%emt 0:00:00]} Nd4+ {[%emt 0:00:00]} 63. Kg3 {[%emt 0:00:00]} Rb3+ {[%emt 0:00:00]} 64. Kh4 {[%emt 0:00:00]} Nf3+ {[%emt 0:00:00]} 65. Kg3 {[%emt 0:00:00]} Ng5+ {[%emt 0:00:00]} 66. Kg2 {[%emt 0:00:00]} Rb2+ {[%emt 0:00:00]} 67. Kh1 {[%emt 0:00:00]} Nf3 {[%emt 0:00:00]} 68. Rh5 {[%emt 0:00:00]} Rxb4 {[%emt 0:00:00]} 69. Kg2 {[%emt 0:00:00]} Rxg4+ {[%emt 0:00:00]} 70. Kh3 {[%emt 0:00:00]} Ra4 {[%emt 0:00:00]} 71. Rd5 {[%emt 0:00:00]} Ng5+ {[%emt 0:00:00]} 72. Kg3 {[%emt 0:00:00]} Ra3+ {[%emt 0:00:00]} 0-1

[Event "WJCC U20 Open 2019"]
[Site "New Delhi"]
[Date "2019.10.19"]
[Round "6.13"]
[White "Kollars, Dmitrij"]
[Black "Hollan, Martin"]
[Result "1-0"]
[ECO "B38"]
[WhiteElo "2587"]
[BlackElo "2403"]
[Annotator "ChessBase"]
[PlyCount "113"]
[EventDate "2019.10.15"]
[EventType "swiss"]
[EventCountry "IND"]
[SourceTitle "playchess.com"]
[Source "ChessBase"]
[SourceQuality "1"]
[TimeControl "40/5400+30:1800+30"]

1. e4 {[%emt 0:00:00]} c5 {[%emt 0:00:00]} 2. Nf3 {[%emt 0:00:00]} Nc6 {[%emt 0:00:00]} 3. d4 {[%emt 0:00:02]} cxd4 {[%emt 0:00:00]} 4. Nxd4 {[%emt 0:00:05]} g6 {[%emt 0:00:01]} 5. c4 {[%emt 0:00:49]} Bg7 {[%emt 0:00:08]} 6. Be3 {[%emt 0:00:10]} Nf6 {[%emt 0:00:10]} 7. Nc3 {[%emt 0:00:10]} O-O {[%emt 0:00:09]} 8. Be2 {[%emt 0:00:39]} d6 {[%emt 0:00:12]} 9. f3 {[%emt 0:00:28]} Nxd4 {[%emt 0:00:35]} 10. Bxd4 {[%emt 0:00:06]} Be6 {[%emt 0:01:25]} 11. O-O {[%emt 0:01:29]} Nd7 {[%emt 0:02:04]} 12. Kh1 {[%emt 0:05:20]} a5 {[%emt 0:07:11]} 13. f4 {[%emt 0:05:25]} Bxd4 {[%emt 0:01:30]} 14. Qxd4 {[%emt 0:00:04]} Qb6 {[%emt 0:02:04]} 15. Qd2 {[%emt 0:01:24]} Nf6 {[%emt 0:11:55]} 16. f5 {[%emt 0:19:45]} gxf5 {[%emt 0:02:32]} 17. exf5 {[%emt 0:03:01]} Bd7 {[%emt 0:01:03]} 18. Nd5 {[%emt 0:04:34]} Nxd5 {[%emt 0:01:15]} 19. cxd5 {[%emt 0:00:23]} f6 {[%emt 0:02:57]} 20. Bh5 {[%emt 0:07:33]} Be8 {[%emt 0:04:12]} 21. Bxe8 {[%emt 0:03:23]} Raxe8 {[%emt 0:00:22]} 22. Rae1 {[%emt 0:01:58]} Rf7 {[%emt 0:06:53]} 23. Rf3 {[%emt 0:02:10]} Rg7 {[%emt 0:08:54]} 24. Rb3 {[%emt 0:03:34]} Qa6 {[%emt 0:02:25]} 25. Rc3 {[%emt 0:03:33]} Rg5 {[%emt 0:03:43]} 26. h4 {[%emt 0:02:14]} Rg4 {[%emt 0:04:52]} 27. g3 {[%emt 0:01:15]} Qb5 {[%emt 0:00:27]} 28. Kh2 {[%emt 0:03:11]} Qb4 {[%emt 0:02:43]} 29. Qe2 {[%emt 0:04:36]} Rg7 {[%emt 0:13:11]} 30. Rb3 {[%emt 0:07:32]} Qd4 {[%emt 0:04:06]} 31. Rxb7 {[%emt 0:01:14]} Qxd5 {[%emt 0:01:28]} 32. Qe6+ {[%emt 0:00:22]} Qxe6 {[%emt 0:00:07]} 33. Rxe6 {[%emt 0:00:06]} Rg4 {[%emt 0:01:15]} 34. Rbxe7 {[%emt 0:02:13]} Rxe7 {[%emt 0:00:10]} 35. Rxe7 {[%emt 0:00:03]} Rd4 {[%emt 0:07:42]} 36. Rb7 {[%emt 0:03:59]} Rd5 {[%emt 0:03:59]} 37. g4 {[%emt 0:01:31]} h5 {[%emt 0:01:15]} 38. gxh5 {[%emt 0:01:10]} Rxf5 {[%emt 0:00:05]} 39. h6 {[%emt 0:03:19]} Rf3 {[%emt 0:01:41]} 40. Kg2 {[%emt 0:02:42]} Rd3 {[%emt 0:00:19]} 41. a4 {[%emt 0:32:29]} d5 {[%emt 0:11:41]} 42. Kf2 {[%emt 0:00:00]} Rh3 {[%emt 0:02:22]} 43. Rb5 {[%emt 0:00:00]} Rxh4 {[%emt 0:01:42]} 44. Rxa5 {[%emt 0:00:00]} Rh2+ {[%emt 0:00:07]} 45. Ke3 {[%emt 0:00:00]} Rxb2 {[%emt 0:00:09]} 46. Rxd5 {[%emt 0:00:00]} Rh2 {[%emt 0:09:15]} 47. a5 {[%emt 0:00:00]} Rxh6 {[%emt 0:00:13]} 48. Kd4 {[%emt 0:00:00]} Kf7 {[%emt 0:01:55]} 49. a6 {[%emt 0:00:00]} Ke6 {[%emt 0:04:44]} 50. Rd8 {[%emt 0:00:00]} Rh7 {[%emt 0:03:52]} 51. Kc5 {[%emt 0:00:00]} f5 {[%emt 0:00:51]} 52. Re8+ {[%emt 0:00:00]} Kf6 {[%emt 0:00:56]} 53. Kb6 {[%emt 0:00:00]} f4 {[%emt 0:00:12]} 54. a7 {[%emt 0:00:00]} Rxa7 {[%emt 0:00:03]} 55. Kxa7 {[%emt 0:00:00]} Kf5 {[%emt 0:00:09]} 56. Kb6 {[%emt 0:00:00]} f3 {[%emt 0:00:03]} 57. Kc5 {[%emt 0:00:00] Ke5} 1-0

[Event "WJCC U20 Open 2019"]
[Site "New Delhi"]
[Date "2019.10.19"]
[Round "6.14"]
[White "Bharath Subramaniyam H"]
[Black "Albornoz Cabrera, Carlos Daniel"]
[Result "0-1"]
[ECO "C77"]
[WhiteElo "2417"]
[BlackElo "2581"]
[Annotator "ChessBase"]
[PlyCount "124"]
[EventDate "2019.10.15"]
[EventType "swiss"]
[EventCountry "IND"]
[SourceTitle "playchess.com"]
[Source "ChessBase"]
[SourceQuality "1"]
[TimeControl "40/5400+30:1800+30"]

1. e4 {[%emt 0:00:00]} e5 {[%emt 0:00:00]} 2. Nf3 {[%emt 0:00:00]} Nc6 {[%emt 0:00:00]} 3. Bb5 {[%emt 0:00:00]} a6 {[%emt 0:00:00]} 4. Ba4 {[%emt 0:00:12]} Nf6 {[%emt 0:00:00]} 5. Qe2 {[%emt 0:01:35]} b5 {[%emt 0:00:53]} 6. Bb3 {[%emt 0:00:10]} Be7 {[%emt 0:00:35]} 7. c3 {[%emt 0:02:42]} d5 {[%emt 0:02:24]} 8. d4 {[%emt 0:11:26]} exd4 {[%emt 0:08:55]} 9. e5 {[%emt 0:01:58]} Ne4 {[%emt 0:00:30]} 10. Nxd4 {[%emt 0:06:02]} Nxe5 {[%emt 0:05:53]} 11. f3 {[%emt 0:16:30]} Nc5 {[%emt 0:01:31]} 12. O-O {[%emt 0:01:26]} Ng6 {[%emt 0:13:09]} 13. Bc2 {[%emt 0:13:43]} Ne6 {[%emt 0:01:54]} 14. Nxe6 {[%emt 0:01:13]} fxe6 {[%emt 0:00:46]} 15. Bxg6+ {[%emt 0:10:21]} hxg6 {[%emt 0:00:01]} 16. Bf4 {[%emt 0:00:23]} Bc5+ {[%emt 0:03:16]} 17. Kh1 {[%emt 0:01:06]} Bd6 {[%emt 0:00:52]} 18. Be5 {[%emt 0:09:09]} Bxe5 {[%emt 0:05:24]} 19. Qxe5 {[%emt 0:00:13]} Qd6 {[%emt 0:00:07]} 20. Re1 {[%emt 0:01:04]} Rh5 {[%emt 0:00:54]} 21. Qxd6 {[%emt 0:00:12]} cxd6 {[%emt 0:00:02]} 22. a4 {[%emt 0:01:17]} bxa4 {[%emt 0:02:36]} 23. Rxa4 {[%emt 0:00:15]} Rb8 {[%emt 0:00:33]} 24. Re2 {[%emt 0:02:01]} Rb6 {[%emt 0:16:27]} 25. Rd4 {[%emt 0:03:05]} Bd7 {[%emt 0:04:16]} 26. Na3 {[%emt 0:00:41]} Re5 {[%emt 0:03:31]} 27. Rxe5 {[%emt 0:02:07]} dxe5 {[%emt 0:00:02]} 28. Rd2 {[%emt 0:00:07]} Ke7 {[%emt 0:03:58]} 29. Kg1 {[%emt 0:01:24]} g5 {[%emt 0:01:25]} 30. Kf2 {[%emt 0:01:04]} Be8 {[%emt 0:00:41]} 31. Ke3 {[%emt 0:02:44]} Bg6 {[%emt 0:00:20]} 32. Ke2 {[%emt 0:01:55]} Rb8 {[%emt 0:02:36]} 33. Ke3 {[%emt 0:05:19]} Rh8 {[%emt 0:02:11]} 34. h3 {[%emt 0:00:22]} Rb8 {[%emt 0:01:04]} 35. Ke2 {[%emt 0:00:22]} e4 {[%emt 0:00:50]} 36. c4 {[%emt 0:00:21]} exf3+ {[%emt 0:01:49]} 37. gxf3 {[%emt 0:00:18]} Kd6 {[%emt 0:06:24]} 38. Kf2 {[%emt 0:01:27]} Kc5 {[%emt 0:01:24]} 39. cxd5 {[%emt 0:00:07]} exd5 {[%emt 0:00:05]} 40. Kg3 {[%emt 0:00:13]} Rb4 {[%emt 0:01:35]} 41. Re2 {[%emt 0:30:17]} Bf5 {[%emt 0:30:37]} 42. Rd2 {[%emt 0:00:32]} g6 {[%emt 0:01:09]} 43. Kg2 {[%emt 0:00:33]} Rb3 {[%emt 0:02:14]} 44. Kg3 {[%emt 0:00:32]} d4 {[%emt 0:05:13]} 45. Kg2 {[%emt 0:00:30]} Rb8 {[%emt 0:00:00]} 46. Re2 {[%emt 0:00:00]} Kd5 {[%emt 0:00:00]} 47. Rd2 {[%emt 0:00:00]} Rh8 {[%emt 0:00:00]} 48. Nc2 {[%emt 0:00:00]} Bxc2 {[%emt 0:00:00]} 49. Rxc2 {[%emt 0:00:00]} d3 {[%emt 0:00:00]} 50. Rc7 {[%emt 0:00:00]} Re8 {[%emt 0:00:00]} 51. f4 {[%emt 0:00:00]} gxf4 {[%emt 0:00:00]} 52. Kf3 {[%emt 0:00:00]} g5 {[%emt 0:00:00]} 53. Rd7+ {[%emt 0:00:00]} Kc4 {[%emt 0:00:00]} 54. Rc7+ {[%emt 0:00:00]} Kb3 {[%emt 0:00:00]} 55. Rc3+ {[%emt 0:00:00]} Kxb2 {[%emt 0:00:00]} 56. Rxd3 {[%emt 0:00:00]} Re3+ {[%emt 0:00:00]} 57. Rxe3 {[%emt 0:00:00]} fxe3 {[%emt 0:00:00]} 58. Kxe3 {[%emt 0:00:00]} a5 {[%emt 0:00:00]} 59. Ke4 {[%emt 0:00:00]} a4 {[%emt 0:00:00]} 60. Kf5 {[%emt 0:00:00]} a3 {[%emt 0:00:00]} 61. Kxg5 {[%emt 0:00:00]} a2 {[%emt 0:00:00]} 62. h4 {[%emt 0:00:00]} a1=Q {[%emt 0:00:00]} 0-1

[Event "WJCC U20 Open 2019"]
[Site "New Delhi"]
[Date "2019.10.19"]
[Round "6.16"]
[White "Drygalov, Sergey"]
[Black "Amartuvshin, Ganzorig"]
[Result "1-0"]
[ECO "B48"]
[WhiteElo "2470"]
[BlackElo "2391"]
[Annotator "ChessBase"]
[PlyCount "55"]
[EventDate "2019.10.15"]
[EventType "swiss"]
[EventCountry "IND"]
[SourceTitle "playchess.com"]
[Source "ChessBase"]
[SourceQuality "1"]
[TimeControl "40/5400+30:1800+30"]

1. e4 {[%emt 0:00:00]} c5 {[%emt 0:00:00]} 2. Nf3 {[%emt 0:00:00]} e6 {[%emt 0:00:00]} 3. d4 {[%emt 0:00:00]} cxd4 {[%emt 0:00:00]} 4. Nxd4 {[%emt 0:00:00]} Nc6 {[%emt 0:00:00]} 5. Nc3 {[%emt 0:00:00]} Qc7 {[%emt 0:00:04]} 6. Be3 {[%emt 0:00:29]} a6 {[%emt 0:00:07]} 7. Qf3 {[%emt 0:00:20]} d6 {[%emt 0:00:14]} 8. Nxc6 {[%emt 0:02:04]} bxc6 {[%emt 0:00:06]} 9. O-O-O {[%emt 0:00:49]} Nf6 {[%emt 0:00:49]} 10. g4 {[%emt 0:03:29]} h5 {[%emt 0:04:14]} 11. gxh5 {[%emt 0:09:36]} Nxh5 {[%emt 0:01:54]} 12. Bc4 {[%emt 0:21:17]} g6 {[%emt 0:06:50]} 13. Rhg1 {[%emt 0:03:12]} Rb8 {[%emt 0:04:03]} 14. Bd4 {[%emt 0:05:34]} e5 {[%emt 0:13:32]} 15. Be3 {[%emt 0:01:06]} a5 {[%emt 0:02:17]} 16. Bb3 {[%emt 0:11:50]} Nf4 {[%emt 0:01:48]} 17. Bxf4 {[%emt 0:02:57]} exf4 {[%emt 0:00:11]} 18. e5 {[%emt 0:00:33]} dxe5 {[%emt 0:22:21]} 19. Ba4 {[%emt 0:02:56]} Be7 {[%emt 0:00:44]} 20. Nd5 {[%emt 0:02:26]} Qb7 {[%emt 0:00:39]} 21. Qc3 {[%emt 0:00:13]} Kf8 {[%emt 0:31:02]} 22. Bxc6 {[%emt 0:01:38]} Rh3 {[%emt 0:00:13]} 23. Qxe5 {[%emt 0:09:17]} Rh5 {[%emt 0:00:08]} 24. Qc3 {[%emt 0:03:28]} Qa7 {[%emt 0:01:46]} 25. Rde1 {[%emt 0:08:55]} Rh3 {[%emt 0:04:22]} 26. Qe5 {[%emt 0:01:31]} Bc5 {[%emt 0:01:39]} 27. Rxg6 {[%emt 0:01:29]} Be3+ {[%emt 0:01:29]} 28. Rxe3 {[%emt 0:00:08]} 1-0

[Event "WJCC U20 Open 2019"]
[Site "New Delhi"]
[Date "2019.10.19"]
[Round "6.17"]
[White "Janik, Igor"]
[Black "Pogosyan, Stefan"]
[Result "1/2-1/2"]
[ECO "E04"]
[WhiteElo "2467"]
[BlackElo "2364"]
[Annotator "ChessBase"]
[PlyCount "61"]
[EventDate "2019.10.15"]
[EventType "swiss"]
[EventCountry "IND"]
[SourceTitle "playchess.com"]
[Source "ChessBase"]
[SourceQuality "1"]
[TimeControl "40/5400+30:1800+30"]

1. d4 {[%emt 0:00:00]} Nf6 {[%emt 0:00:15]} 2. c4 {[%emt 0:00:00]} e6 {[%emt 0:00:15]} 3. Nf3 {[%emt 0:00:00]} d5 {[%emt 0:00:30]} 4. g3 {[%emt 0:00:26]} dxc4 {[%emt 0:00:05]} 5. Bg2 {[%emt 0:00:10]} a6 {[%emt 0:00:06]} 6. O-O {[%emt 0:00:09]} Nc6 {[%emt 0:00:03]} 7. Be3 {[%emt 0:00:10]} Rb8 {[%emt 0:05:18]} 8. Qc1 {[%emt 0:00:24]} Nd5 {[%emt 0:09:34]} 9. Qxc4 {[%emt 0:00:24]} Nxe3 {[%emt 0:00:27]} 10. fxe3 {[%emt 0:00:15]} Bd6 {[%emt 0:00:14]} 11. Nc3 {[%emt 0:02:04]} O-O {[%emt 0:01:07]} 12. Rad1 {[%emt 0:02:15]} b5 {[%emt 0:03:51]} 13. Qd3 {[%emt 0:01:14]} Bb7 {[%emt 0:01:00]} 14. e4 {[%emt 0:03:12]} e5 {[%emt 0:08:04]} 15. d5 {[%emt 0:05:22]} Na7 {[%emt 0:12:55]} 16. Rf2 {[%emt 0:10:04]} Bc8 {[%emt 0:05:21]} 17. Rdf1 {[%emt 0:00:56]} Bd7 {[%emt 0:02:56]} 18. Nd1 {[%emt 0:02:25]} Nc8 {[%emt 0:02:28]} 19. Ne3 {[%emt 0:02:33]} g6 {[%emt 0:00:12]} 20. h4 {[%emt 0:00:54]} Qe7 {[%emt 0:05:19]} 21. Ng5 {[%emt 0:03:19]} f6 {[%emt 0:02:27]} 22. Bh3 {[%emt 0:01:29]} Bxh3 {[%emt 0:06:54]} 23. Nxh3 {[%emt 0:00:09]} Bc5 {[%emt 0:01:10]} 24. Ng5 {[%emt 0:18:23]} Nd6 {[%emt 0:01:39]} 25. Ne6 {[%emt 0:00:13]} Nc4 {[%emt 0:00:06]} 26. Nxc4 {[%emt 0:00:55]} Bxf2+ {[%emt 0:01:47]} 27. Rxf2 {[%emt 0:00:57]} bxc4 {[%emt 0:00:06]} 28. Qxc4 {[%emt 0:00:07]} Rf7 {[%emt 0:02:19]} 29. Qxa6 {[%emt 0:07:58]} Qb4 {[%emt 0:01:20]} 30. Qc6 {[%emt 0:05:31]} Qxb2 {[%emt 0:06:48]} 31. Ng5 1/2-1/2